bitfinex-derivatives/quotes_BTCF0:USTF0_20250427
["timestamp","ask_amount","ask_price","bid_price","bid_amount"]
[1745728461225,0.2681446,94258.0,94257.0,0.0328]
[1745728461526,0.2681446,94258.0,94257.0,0.2449179]
[1745728473231,0.6604446,94258.0,94257.0,0.2449179]
[1745728485440,0.2996446,94258.0,94257.0,0.2449179]
[1745728485638,0.6604446,94258.0,94257.0,0.2449179]
[1745728486043,0.6614446,94258.0,94257.0,0.2449179]
[1745728497839,0.6614446,94258.0,94257.0,0.0328]
[1745728498039,0.6924446,94258.0,94257.0,0.0328]
[1745728504354,0.0530315,94254.0,94247.0,0.00530518]
[1745728504566,0.2749269,94253.0,94252.0,0.0319]
[1745728506164,0.3979269,94253.0,94252.0,0.0319]
[1745728507049,0.3959269,94253.0,94252.0,0.0319]
[1745728507267,0.2759269,94253.0,94252.0,0.0319]
[1745728508488,0.001,94253.0,94252.0,0.2440291]
[1745728508872,0.2131269,94253.0,94252.0,0.2440291]
[1745728509263,0.2131269,94253.0,94252.0,0.3640291]
[1745728509561,0.2121269,94253.0,94252.0,0.4294291]
[1745728509767,0.2131269,94253.0,94252.0,0.4294291]
[1745728510950,0.2741269,94253.0,94252.0,0.4294291]
[1745728511156,0.2741269,94253.0,94252.0,0.3094291]
[1745728511552,0.2741269,94253.0,94252.0,0.3423291]
[1745728512388,0.6349269,94253.0,94252.0,0.3423291]
[1745728514365,0.2741269,94253.0,94252.0,0.3423291]
[1745728514561,0.6349269,94253.0,94252.0,0.3423291]
[1745728518460,0.2741269,94253.0,94252.0,0.3423291]
[1745728518764,0.6349269,94253.0,94252.0,0.3423291]
[1745728520175,0.6349269,94253.0,94252.0,0.2769291]
[1745728521062,0.6349269,94253.0,94252.0,0.2440291]
[1745728522473,0.2741269,94253.0,94252.0,0.2440291]
[1745728522663,0.6349269,94253.0,94252.0,0.2440291]
[1745728525771,0.2741269,94253.0,94252.0,0.2440291]
[1745728525973,0.6349269,94253.0,94252.0,0.2440291]
[1745728526371,0.6047269,94253.0,94252.0,0.2440291]
[1745728527069,0.6047269,94253.0,94252.0,0.3640291]
[1745728528568,0.5739269,94253.0,94252.0,0.3640291]
[1745728531164,0.5739269,94253.0,94252.0,0.2440291]
[1745728531880,0.6065269,94253.0,94252.0,0.2440291]
[1745728532071,0.6373269,94253.0,94252.0,0.2440291]
[1745728536277,0.2121359,94249.0,94248.0,0.2651654]
[1745728536480,0.2121359,94249.0,94248.0,0.2952654]
[1745728536777,0.2121359,94249.0,94248.0,0.3282654]
[1745728537173,0.2121359,94249.0,94248.0,0.4482654]
[1745728537475,0.2432359,94249.0,94248.0,0.4482654]
[1745728537877,0.6040359,94249.0,94248.0,0.4482654]
[1745728538674,0.6080359,94249.0,94248.0,0.4482654]
[1745728544885,0.2472359,94249.0,94248.0,0.4482654]
[1745728545087,0.6080359,94249.0,94248.0,0.4482654]
[1745728548673,0.2472359,94249.0,94248.0,0.4482654]
[1745728548874,0.6080359,94249.0,94248.0,0.4482654]
[1745728549880,0.2472359,94249.0,94248.0,0.4482654]
[1745728550182,0.6080359,94249.0,94248.0,0.4482654]
[1745728550783,0.6080359,94249.0,94248.0,0.4152654]
[1745728550977,0.6394359,94249.0,94248.0,0.4152654]
[1745728552074,0.6394359,94249.0,94248.0,0.2952654]
[1745728557095,0.2786359,94249.0,94248.0,0.2952654]
[1745728557294,0.6394359,94249.0,94248.0,0.2952654]
[1745728573092,0.2121381,94248.0,94247.0,0.00530518]
[1745728573295,0.24497188,94248.0,94247.0,0.00530518]
[1745728573494,0.27557188,94248.0,94247.0,0.03560518]
[1745728573691,0.27557188,94248.0,94247.0,0.24774558]
[1745728574294,0.27857188,94248.0,94247.0,0.24774558]
[1745728575403,0.63937188,94248.0,94247.0,0.24774558]
[1745728576303,0.63937188,94248.0,94247.0,0.00530518]
[1745728577804,0.63937188,94248.0,94247.0,0.21744558]
[1745728578397,0.63937188,94248.0,94247.0,0.00530518]
[1745728580005,0.63937188,94248.0,94247.0,0.21744558]
[1745728581391,0.64774687,94248.0,94247.0,0.24764558]
[1745728581604,0.63737188,94248.0,94247.0,0.24764558]
[1745728583403,0.28744897,94248.0,94247.0,0.24764558]
[1745728583605,0.64824897,94248.0,94247.0,0.24764558]
[1745728584711,0.63737188,94248.0,94247.0,0.24764558]
[1745728585204,0.63737188,94248.0,94247.0,0.36764558]
[1745728585409,0.64824386,94248.0,94247.0,0.36764558]
[1745728585610,0.63737188,94248.0,94247.0,0.36764558]
[1745728586108,0.63737188,94248.0,94247.0,0.24764558]
[1745728587702,0.63737188,94248.0,94247.0,0.03550518]
[1745728588610,0.57377188,94248.0,94247.0,0.24764558]
[1745728588807,0.57377188,94248.0,94247.0,0.27914558]
[1745728589209,0.57377188,94248.0,94247.0,0.39914558]
[1745728593115,0.3618,94248.0,94247.0,0.39914558]
[1745728597411,0.001,94248.0,94247.0,0.39914558]
[1745728599320,0.35030113,94273.0,94262.0,0.2121066]
[1745728599614,0.0331,94272.0,94262.0,0.2121066]
[1745728600114,0.2451852,94272.0,94262.0,0.3321066]
[1745728600307,0.0331,94272.0,94262.0,0.3957066]
[1745728600816,0.3618,94263.0,94262.0,0.3957066]
[1745728601114,0.001,94263.0,94262.0,0.3957066]
[1745728602314,0.001,94263.0,94262.0,0.2757066]
[1745728602716,0.0323,94268.0,94267.0,0.2120954]
[1745728603508,0.0323,94268.0,94267.0,0.2742954]
[1745728603915,0.0333,94268.0,94267.0,0.2762954]
[1745728605214,0.1533,94268.0,94267.0,0.2762954]
[1745728605417,0.121,94268.0,94267.0,0.2762954]
[1745728606422,0.001,94268.0,94267.0,0.2762954]
[1745728607416,0.0341,94268.0,94267.0,0.2762954]
[1745728608821,0.2461931,94268.0,94267.0,0.2762954]
[1745728609214,0.3661931,94268.0,94267.0,0.2762954]
[1745728617727,0.3661931,94268.0,94267.0,0.2460954]
[1745728622129,0.2461931,94268.0,94267.0,0.2460954]
[1745728626226,0.3661931,94268.0,94267.0,0.2460954]
[1745728627436,0.1541,94268.0,94267.0,0.2460954]
[1745728627827,0.3661931,94268.0,94267.0,0.2460954]
[1745728628028,0.1847,94268.0,94267.0,0.2460954]
[1745728628730,0.053015,94283.0,94282.0,0.2120594]
[1745728628927,0.116315,94283.0,94282.0,0.2120594]
[1745728629135,0.12408732,94283.0,94282.0,0.2120594]
[1745728629836,0.33614672,94283.0,94282.0,0.2120594]
[1745728630138,0.33714672,94283.0,94282.0,0.2130594]
[1745728631731,0.36714672,94283.0,94282.0,0.2130594]
[1745728633335,0.0943,94283.0,94282.0,0.2130594]
[1745728633539,0.0616,94283.0,94282.0,0.2130594]
[1745728633836,0.2736594,94283.0,94282.0,0.2130594]
[1745728634226,0.2736594,94283.0,94282.0,0.001]
[1745728635233,0.2736594,94283.0,94282.0,0.2130616]
[1745728635535,0.2736594,94283.0,94282.0,0.001]
[1745728635839,0.28181779,94283.0,94282.0,0.001]
[1745728636037,0.28181779,94283.0,94282.0,0.2130616]
[1745728636239,0.28181779,94283.0,94282.0,0.001]
[1745728637941,0.28181779,94283.0,94282.0,0.2130616]
[1745728638838,0.64261779,94283.0,94282.0,0.2130616]
[1745728639637,0.64261779,94283.0,94282.0,0.001]
[1745728645542,0.64261779,94283.0,94266.0,0.2120961]
[1745728645543,0.2120976,94267.0,94266.0,0.2120961]
[1745728645747,0.5728976,94267.0,94266.0,0.2120961]
[1745728645936,0.5728976,94267.0,94266.0,0.2445961]
[1745728646441,0.6651976,94267.0,94266.0,0.2445961]
[1745728648143,0.6661976,94267.0,94266.0,0.2455961]
[1745728648546,0.3053976,94267.0,94266.0,0.2455961]
[1745728648740,0.6661976,94267.0,94266.0,0.2455961]
[1745728656748,0.6661976,94267.0,94266.0,0.0335]
[1745728658049,0.2121246,94255.0,94254.0,0.2121239]
[1745728658349,0.5729246,94255.0,94254.0,0.2444239]
[1745728659147,0.6365246,94255.0,94254.0,0.2444239]
[1745728659457,0.6375246,94255.0,94254.0,0.2454239]
[1745728660449,0.6375246,94255.0,94254.0,0.0333]
[1745728660752,0.6365246,94255.0,94254.0,0.0323]
[1745728660948,0.6375246,94255.0,94254.0,0.0323]
[1745728661838,0.6365246,94255.0,94254.0,0.0323]
[1745728662151,0.6375246,94255.0,94254.0,0.0323]
[1745728668355,0.2767246,94255.0,94254.0,0.0323]
[1745728668557,0.6375246,94255.0,94254.0,0.0323]
[1745728670848,0.2121381,94248.0,94247.0,0.27047258]
[1745728672054,0.2121381,94248.0,94247.0,0.30087258]
[1745728672551,0.2444381,94248.0,94247.0,0.30087258]
[1745728673663,0.2454381,94248.0,94247.0,0.33097258]
[1745728673855,0.2454381,94248.0,94247.0,0.27793788]
[1745728676259,0.2766381,94248.0,94247.0,0.27793788]
[1745728680267,0.2766381,94248.0,94247.0,0.03570518]
[1745728680673,0.3066381,94248.0,94247.0,0.03570518]
[1745728681065,0.3066381,94248.0,94247.0,0.24784558]
[1745728684168,0.3066381,94248.0,94247.0,0.36784558]
[1745728684569,0.2766381,94248.0,94247.0,0.36784558]
[1745728685166,0.2766381,94248.0,94247.0,0.24784558]
[1745728685662,0.2454381,94248.0,94247.0,0.24784558]
[1745728687963,0.2131381,94248.0,94247.0,0.24784558]
[1745728690171,0.2131381,94248.0,94247.0,0.36784558]
[1745728690778,0.2453381,94248.0,94247.0,0.36784558]
[1745728691580,0.2753381,94248.0,94247.0,0.15570518]
[1745728691777,0.3085381,94248.0,94247.0,0.15570518]
[1745728692171,0.3085381,94248.0,94247.0,0.03570518]
[1745728693173,0.6693381,94248.0,94247.0,0.03570518]
[1745728701478,0.3085381,94248.0,94247.0,0.03570518]
[1745728701781,0.6693381,94248.0,94247.0,0.03570518]
[1745728702572,0.3085381,94248.0,94247.0,0.03570518]
[1745728702774,0.6693381,94248.0,94247.0,0.03570518]
[1745728704877,0.3085381,94248.0,94247.0,0.03570518]
[1745728705076,0.6693381,94248.0,94247.0,0.03570518]
[1745728706289,0.2121539,94241.0,94240.0,0.0664]
[1745728706783,0.2121539,94241.0,94240.0,0.2785561]
[1745728707180,0.2740539,94241.0,94240.0,0.4305561]
[1745728708187,0.2750539,94241.0,94240.0,0.4305561]
[1745728708578,0.6358539,94241.0,94240.0,0.4305561]
[1745728709480,0.5739539,94241.0,94240.0,0.4614561]
[1745728709975,0.2131539,94241.0,94240.0,0.4614561]
[1745728710184,0.5739539,94241.0,94240.0,0.4614561]
[1745728714187,0.5739539,94241.0,94240.0,0.3950561]
[1745728715083,0.6355539,94241.0,94240.0,0.3950561]
[1745728721597,0.6355539,94241.0,94240.0,0.1509]
[1745728721798,0.6355539,94241.0,94240.0,0.3630561]
[1745728723099,0.6355539,94241.0,94240.0,0.2430561]
[1745728723303,0.6355539,94241.0,94240.0,0.0309]
[1745728724297,0.6355539,94241.0,94240.0,0.1509]
[1745728725200,0.6355539,94241.0,94240.0,0.0309]
[1745728725400,0.2121651,94236.0,94235.0,0.2121663]
[1745728726800,0.2425651,94236.0,94235.0,0.2440663]
[1745728727296,0.25322181,94236.0,94235.0,0.2440663]
[1745728727493,0.25322181,94236.0,94235.0,0.0319]
[1745728727798,0.2121742,94232.0,94227.0,0.053046]
[1745728727997,0.2121742,94232.0,94229.0,0.2121798]
[1745728728400,0.2121742,94232.0,94231.0,0.2137681]
[1745728729195,0.2437742,94232.0,94231.0,0.2447681]
[1745728729504,0.2477742,94232.0,94231.0,0.2447681]
[1745728731198,0.2161742,94232.0,94231.0,0.3647681]
[1745728733091,0.2794742,94232.0,94231.0,0.3647681]
[1745728733799,0.2794742,94232.0,94231.0,0.1525917]
[1745728734100,0.2794742,94232.0,94231.0,0.0325917]
[1745728736300,0.6402742,94232.0,94231.0,0.0325917]
[1745728736799,0.6402742,94232.0,94231.0,0.0015917]
[1745728739292,0.6402742,94232.0,94231.0,0.0332917]
[1745728739498,0.6402742,94232.0,94231.0,0.2454681]
[1745728739699,0.6402742,94232.0,94231.0,0.0332917]
[1745728740699,0.6402742,94232.0,94231.0,0.2454681]
[1745728742195,0.2794742,94232.0,94231.0,0.2454681]
[1745728742494,0.6402742,94232.0,94231.0,0.2454681]
[1745728743105,0.2794742,94232.0,94231.0,0.2454681]
[1745728743404,0.6402742,94232.0,94231.0,0.2454681]
[1745728743801,0.6402742,94232.0,94231.0,0.0332917]
[1745728750512,0.2121877,94226.0,94225.0,0.0321]
[1745728750710,0.2652317,94227.0,94226.0,0.0306]
[1745728750910,0.2121989,94221.0,94220.0,0.00106134]
[1745728751207,0.5729989,94221.0,94220.0,0.00106134]
[1745728752312,0.5729989,94221.0,94220.0,0.03166134]
[1745728752510,0.5749989,94221.0,94220.0,0.03166134]
[1745728756400,0.0530507,94220.0,94212.0,0.06592]
[1745728756601,0.2122192,94212.0,94211.0,0.24482]
[1745728757004,0.2454192,94212.0,94211.0,0.24482]
[1745728758011,0.2474192,94212.0,94211.0,0.24482]
[1745728759211,0.2474192,94212.0,94211.0,0.36482]
[1745728760202,0.2474192,94212.0,94211.0,0.24482]
[1745728762511,0.2798192,94212.0,94211.0,0.24482]
[1745728763214,0.2798192,94212.0,94211.0,0.36482]
[1745728763617,0.6406192,94212.0,94211.0,0.36482]
[1745728764525,0.6406192,94212.0,94211.0,0.1526]
[1745728765223,0.6406192,94212.0,94211.0,0.0326]
[1745728765519,0.2798192,94212.0,94211.0,0.0326]
[1745728765721,0.6406192,94212.0,94211.0,0.2448214]
[1745728766016,0.6074192,94212.0,94211.0,0.2753214]
[1745728766211,0.6074192,94212.0,94211.0,0.3953214]
[1745728766711,0.5750192,94212.0,94211.0,0.3953214]
[1745728768218,0.5750192,94212.0,94211.0,0.1526]
[1745728768714,0.6074192,94212.0,94211.0,0.1526]
[1745728771910,0.6074192,94212.0,94211.0,0.3648214]
[1745728774310,0.6074192,94212.0,94211.0,0.1526]
[1745728775318,0.6074192,94212.0,94211.0,0.0326]
[1745728776214,0.6074192,94212.0,94211.0,0.1526]
[1745728776715,0.6074192,94212.0,94211.0,0.3648214]
[1745728778611,0.6084192,94212.0,94211.0,0.3648214]
[1745728779112,0.6054192,94212.0,94211.0,0.2448214]
[1745728779321,0.6094192,94212.0,94211.0,0.2448214]
[1745728779822,0.6094192,94212.0,94211.0,0.0326]
[1745728780212,0.6094192,94212.0,94211.0,0.1526]
[1745728781223,0.6094192,94212.0,94211.0,0.0326]
[1745728782121,0.6094192,94212.0,94211.0,0.1526]
[1745728783520,0.2486192,94212.0,94211.0,0.1526]
[1745728783722,0.6094192,94212.0,94211.0,0.1526]
[1745728785514,0.2486192,94212.0,94211.0,0.1526]
[1745728785720,0.6094192,94212.0,94211.0,0.1526]
[1745728786227,0.6094192,94212.0,94211.0,0.0326]
[1745728787823,0.2486192,94212.0,94211.0,0.0326]
[1745728788023,0.6094192,94212.0,94211.0,0.0326]
[1745728788228,0.6094192,94212.0,94211.0,0.1526]
[1745728789933,0.2122327,94206.0,94205.0,0.0306]
[1745728790329,0.2122327,94206.0,94205.0,0.1506]
[1745728791032,0.5730327,94206.0,94205.0,0.1506]
[1745728791227,0.6057327,94206.0,94205.0,0.1806]
[1745728791635,0.6057327,94206.0,94205.0,0.211]
[1745728791835,0.212244,94201.0,94200.0,0.1]
[1745728792224,0.212244,94201.0,94200.0,0.22]
[1745728792633,0.277644,94201.0,94200.0,0.22]
[1745728793136,0.277644,94201.0,94200.0,0.1]
[1745728793527,0.278644,94201.0,94200.0,0.1]
[1745728802544,0.277644,94201.0,94200.0,0.1]
[1745728802737,0.278644,94201.0,94200.0,0.1]
[1745728804345,0.0664,94201.0,94173.0,0.1191961]
[1745728804642,0.2123048,94176.0,94175.0,0.2123008]
[1745728804836,0.2123048,94176.0,94175.0,0.2752008]
[1745728805038,0.626169,94180.0,94179.0,0.2122936]
[1745728805242,0.5730958,94180.0,94179.0,0.2122936]
[1745728805847,0.5730958,94180.0,94179.0,0.2762936]
[1745728806339,0.5740958,94180.0,94179.0,0.3962936]
[1745728807942,0.3618,94180.0,94179.0,0.3962936]
[1745728809645,0.5740913,94180.0,94179.0,0.3962936]
[1745728810740,0.00808084,94186.0,94179.0,0.3962936]
[1745728810741,0.3608,94213.0,94201.0,0.0530595]
[1745728810934,0.2122395,94204.0,94203.0,0.2122282]
[1745728811242,0.2122395,94204.0,94203.0,0.1827]
[1745728811441,0.2455395,94204.0,94203.0,0.3949395]
[1745728811648,0.2758395,94204.0,94203.0,0.12]
[1745728812240,0.2122462,94200.0,94199.0,0.3608]
[1745728813135,0.2771462,94200.0,94199.0,0.4808]
[1745728813534,0.2771462,94200.0,94199.0,0.12]
[1745728814145,0.2122665,94191.0,94190.0,0.3608]
[1745728815147,0.2771665,94191.0,94190.0,0.6940688]
[1745728815439,0.2771665,94191.0,94190.0,0.4818]
[1745728815645,0.2455665,94191.0,94190.0,0.6940688]
[1745728815836,0.2455665,94191.0,94190.0,0.7255688]
[1745728816350,0.0333,94191.0,94190.0,0.7255688]
[1745728816742,0.2455665,94191.0,94190.0,0.7255688]
[1745728818147,0.2455665,94191.0,94190.0,0.5133]
[1745728818941,0.2782665,94191.0,94190.0,0.121]
[1745728819147,0.2782665,94191.0,94190.0,0.001]
[1745728820144,0.2782665,94191.0,94190.0,0.121]
[1745728822743,0.2455665,94191.0,94190.0,0.121]
[1745728822945,0.2455665,94191.0,94190.0,0.3332688]
[1745728823745,0.2455665,94191.0,94190.0,0.3953688]
[1745728824958,0.001,94191.0,94190.0,0.3953688]
[1745728825166,0.2132665,94191.0,94190.0,0.3953688]
[1745728828754,0.2462665,94191.0,94190.0,0.3953688]
[1745728831068,0.2462665,94191.0,94190.0,0.3647688]
[1745728831863,0.2462665,94191.0,94190.0,0.3332688]
[1745728832368,0.2462665,94191.0,94190.0,0.121]
[1745728832558,0.2774665,94191.0,94190.0,0.121]
[1745728833161,0.2774665,94191.0,94190.0,0.001]
[1745728835167,0.2122936,94179.0,94178.0,0.2122944]
[1745728835364,0.2122936,94179.0,94178.0,0.5730944]
[1745728836067,0.2122936,94179.0,94178.0,0.6930944]
[1745728836266,0.2132936,94179.0,94178.0,0.6940944]
[1745728836861,0.2132936,94179.0,94178.0,0.3332944]
[1745728837058,0.2132936,94179.0,94178.0,0.4818]
[1745728837059,0.2754936,94179.0,94178.0,0.4818]
[1745728838061,0.2754936,94179.0,94178.0,0.6940958]
[1745728839263,0.2754936,94179.0,94178.0,0.7246958]
[1745728839767,0.2754936,94179.0,94178.0,0.5124]
[1745728840768,0.2754936,94179.0,94178.0,0.7246958]
[1745728843868,0.2442936,94179.0,94178.0,0.7246958]
[1745728846472,0.2442936,94179.0,94178.0,0.7563958]
[1745728851675,0.2442936,94179.0,94178.0,0.7246958]
[1745728852267,0.2442936,94179.0,94178.0,0.5124]
[1745728852476,0.2442936,94179.0,94178.0,0.4818]
[1745728852675,0.2442936,94179.0,94178.0,0.6940958]
[1745728856075,0.2442936,94179.0,94178.0,0.7258958]
[1745728856877,0.2442936,94179.0,94178.0,0.4818]
[1745728857472,0.2442936,94179.0,94178.0,0.6940958]
[1745728858279,0.2432936,94179.0,94178.0,0.4818]
[1745728859375,0.2432936,94179.0,94178.0,0.6940958]
[1745728859581,0.2432936,94179.0,94178.0,0.4818]
[1745728860283,0.2442936,94179.0,94178.0,0.4818]
[1745728860784,0.2432936,94179.0,94178.0,0.6930958]
[1745728860984,0.2442936,94179.0,94178.0,0.6940958]
[1745728861687,0.032,94179.0,94178.0,0.6940958]
[1745728861982,0.001,94179.0,94178.0,0.7564958]
[1745728863289,0.0307,94185.0,94181.0,0.0530719]
[1745728863487,0.2122695,94190.0,94185.0,0.0530696]
[1745728863785,0.2122695,94190.0,94182.0,0.1170713]
[1745728863786,0.2122695,94190.0,94189.0,0.212271]
[1745728864186,0.2122695,94190.0,94189.0,0.397771]
[1745728864388,0.2122695,94190.0,94189.0,0.332271]
[1745728864780,0.2429695,94190.0,94189.0,0.364071]
[1745728864976,0.2439695,94190.0,94189.0,0.366071]
[1745728866184,0.2750695,94190.0,94189.0,0.366071]
[1745728868890,0.2750695,94190.0,94189.0,0.334271]
[1745728876198,0.2750695,94190.0,94189.0,0.122]
[1745728876499,0.2439695,94190.0,94189.0,0.334271]
[1745728878395,0.2439695,94190.0,94189.0,0.397371]
[1745728882601,0.0317,94190.0,94189.0,0.397371]
[1745728882999,0.2439688,94190.0,94189.0,0.397371]
[1745728886004,0.0530536,94215.0,94189.0,0.652068]
[1745728886301,0.22030789,94203.0,94202.0,0.2122417]
[1745728886702,0.2122316,94207.0,94206.0,0.2122327]
[1745728887204,0.2122316,94207.0,94206.0,0.3322327]
[1745728887907,0.2732316,94207.0,94206.0,0.3983327]
[1745728888200,0.28116653,94207.0,94206.0,0.3983327]
[1745728888800,0.06893493,94207.0,94206.0,0.3983327]
[1745728888995,0.25056543,94207.0,94206.0,0.3983327]
[1745728889700,0.25256543,94207.0,94206.0,0.3993327]
[1745728890099,0.0324,94207.0,94206.0,0.3993327]
[1745728890796,0.002,94207.0,94206.0,0.3993327]
[1745728894899,0.0353,94207.0,94206.0,0.3993327]
[1745728897397,0.002,94207.0,94206.0,0.3993327]
[1745728897602,0.05305,94221.0,94217.0,0.2122079]
[1745728897805,0.2174057,94218.0,94217.0,0.2122079]
[1745728898115,0.0052,94218.0,94217.0,0.3628079]
[1745728898309,0.2174057,94218.0,94217.0,0.3628079]
[1745728898699,0.2174057,94218.0,94217.0,0.3959079]
[1745728899106,0.2214057,94218.0,94217.0,0.3969079]
[1745728899500,0.2835057,94218.0,94217.0,0.3969079]
[1745728903011,0.2527057,94218.0,94217.0,0.3969079]
[1745728903207,0.0405,94218.0,94217.0,0.3969079]
[1745728903912,0.2527057,94218.0,94217.0,0.3969079]
[1745728904102,0.2527057,94218.0,94217.0,0.4675879]
[1745728905403,0.0405,94218.0,94217.0,0.4675879]
[1745728905907,0.2527057,94218.0,94217.0,0.4675879]
[1745728907099,0.0405,94218.0,94217.0,0.4675879]
[1745728907603,0.2527057,94218.0,94217.0,0.4675879]
[1745728908311,0.2527057,94218.0,94217.0,0.8283879]
[1745728908807,0.2527057,94218.0,94217.0,0.7646879]
[1745728911614,0.0405,94218.0,94217.0,0.4038879]
[1745728912810,0.2527057,94218.0,94217.0,0.4038879]
[1745728914405,0.2527057,94218.0,94217.0,0.7646879]
[1745728915115,0.2527057,94218.0,94217.0,0.6940079]
[1745728915304,0.2527057,94218.0,94217.0,0.7650079]
[1745728915713,0.2527057,94218.0,94217.0,0.4042079]
[1745728915909,0.2527057,94218.0,94217.0,0.7650079]
[1745728916807,0.2527057,94218.0,94217.0,0.4042079]
[1745728917007,0.2527057,94218.0,94217.0,0.7650079]
[1745728917207,0.0405,94218.0,94217.0,0.7650079]
[1745728917412,0.0405,94218.0,94217.0,0.8277079]
[1745728919803,0.2527057,94218.0,94217.0,0.8277079]
[1745728920910,0.2527057,94218.0,94217.0,0.4669079]
[1745728921104,0.2527057,94218.0,94217.0,0.8277079]
[1745728921520,0.2527057,94218.0,94217.0,0.4669079]
[1745728921714,0.2527057,94218.0,94217.0,0.8277079]
[1745728922414,0.2527057,94218.0,94217.0,0.7650079]
[1745728924120,0.2527057,94218.0,94217.0,0.121]
[1745728925209,0.3727057,94218.0,94217.0,0.001]
[1745728928114,0.47884171,94218.0,94217.0,0.001]
[1745728928414,0.83964171,94218.0,94217.0,0.001]
[1745728932120,0.6135057,94218.0,94217.0,0.001]
[1745728939123,0.7335057,94218.0,94217.0,0.001]
[1745728939522,0.2122327,94207.0,94206.0,0.2122327]
[1745728939917,0.3071327,94207.0,94206.0,0.2122327]
[1745728940712,0.2738327,94207.0,94206.0,0.2122327]
[1745728941215,0.2738327,94207.0,94206.0,0.3629327]
[1745728942111,0.2748327,94207.0,94206.0,0.3629327]
[1745728942316,0.2748327,94207.0,94206.0,0.3931327]
[1745728944326,0.2445327,94207.0,94206.0,0.3931327]
[1745728954929,0.2755327,94207.0,94206.0,0.3931327]
[1745728955128,0.28593369,94207.0,94206.0,0.3931327]
[1745728955319,0.28593369,94207.0,94206.0,0.3322327]
[1745728955519,0.2755327,94207.0,94206.0,0.3322327]
[1745728956729,0.28620188,94207.0,94206.0,0.3322327]
[1745728957128,0.28620188,94207.0,94206.0,0.2122327]
[1745728958229,0.28620188,94207.0,94206.0,0.3322327]
[1745728960236,0.28620188,94207.0,94206.0,0.2122327]
[1745728960921,0.2755327,94207.0,94206.0,0.2122327]
[1745728962215,0.2755327,94207.0,94206.0,0.3322327]
[1745728962415,0.2755327,94207.0,94206.0,0.3645327]
[1745728966330,0.2445327,94207.0,94206.0,0.3645327]
[1745728972740,0.2775327,94207.0,94206.0,0.3645327]
[1745728974141,0.2775327,94207.0,94206.0,0.2445327]
[1745728974340,0.0653,94207.0,94206.0,0.2445327]
[1745728974534,0.001,94207.0,94206.0,0.2445327]
[1745728974739,0.001,94207.0,94206.0,0.35068069]
[1745728975130,0.001,94207.0,94206.0,0.48700828]
[1745728976144,0.001,94207.0,94206.0,0.38086029]
[1745728977833,0.001,94207.0,94206.0,0.3645327]
[1745728978346,0.2132305,94207.0,94206.0,0.3645327]
[1745728978540,0.064,94207.0,94206.0,0.3645327]
[1745728979649,0.2762305,94207.0,94206.0,0.3322327]
[1745728979842,0.3073305,94207.0,94206.0,0.3322327]
[1745728981135,0.3073305,94207.0,94206.0,0.2122327]
[1745728982231,0.3073305,94207.0,94206.0,0.3322327]
[1745729001147,0.3073305,94207.0,94206.0,0.2122327]
[1745729002053,0.3073305,94207.0,94206.0,0.3322327]
[1745729003159,0.3073305,94207.0,94206.0,0.2122327]
[1745729005061,0.3073305,94207.0,94206.0,0.3322327]
[1745729007659,0.2446305,94207.0,94206.0,0.3322327]
[1745729007850,0.2446305,94207.0,94206.0,0.3647327]
[1745729018863,0.2446305,94207.0,94206.0,0.3322327]
[1745729019767,0.2446305,94207.0,94206.0,0.12]
[1745729020772,0.2446305,94207.0,94206.0,0.3322327]
[1745729039682,0.2446305,94207.0,94206.0,0.12]
[1745729065001,0.6054305,94207.0,94206.0,0.12]
[1745729067607,0.6054305,94207.0,94202.0,0.0634]
[1745729067608,0.2122395,94203.0,94202.0,0.0329]
[1745729067804,0.2122462,94200.0,94199.0,0.0313]
[1745729068197,0.2122462,94200.0,94199.0,0.1513]
[1745729068602,0.2443462,94200.0,94199.0,0.1513]
[1745729069200,0.2453462,94200.0,94199.0,0.1523]
[1745729069601,0.2453462,94200.0,94199.0,0.121]
[1745729070512,0.25580454,94200.0,94199.0,0.121]
[1745729078704,0.61660454,94200.0,94199.0,0.121]
[1745729086609,0.25580454,94200.0,94199.0,0.121]
[1745729086811,0.61660454,94200.0,94199.0,0.121]
[1745729106023,0.61660454,94200.0,94199.0,0.1518]
[1745729107517,0.25580454,94200.0,94199.0,0.1518]
[1745729107716,0.61660454,94200.0,94199.0,0.1518]
[1745729124639,0.25580454,94200.0,94199.0,0.1518]
[1745729124836,0.61660454,94200.0,94199.0,0.1518]
[1745729131133,0.25580454,94200.0,94199.0,0.1518]
[1745729131330,0.61660454,94200.0,94199.0,0.1518]
[1745729135443,0.25580454,94200.0,94199.0,0.1518]
[1745729135643,0.61660454,94200.0,94199.0,0.1518]
[1745729138342,0.64770454,94200.0,94199.0,0.1518]
[1745729139043,0.64770454,94200.0,94199.0,0.121]
[1745729140246,0.61660454,94200.0,94199.0,0.121]
[1745729145235,0.61560454,94200.0,94199.0,0.121]
[1745729145437,0.61660454,94200.0,94199.0,0.121]
[1745729147343,0.61560454,94200.0,94199.0,0.12]
[1745729147539,0.61660454,94200.0,94199.0,0.12]
[1745729148337,0.61560454,94200.0,94199.0,0.12]
[1745729148537,0.61660454,94200.0,94199.0,0.12]
[1745729149842,0.64850454,94200.0,94199.0,0.12]
[1745729151647,0.28770454,94200.0,94199.0,0.12]
[1745729151843,0.64850454,94200.0,94199.0,0.12]
[1745729154453,0.64750454,94200.0,94199.0,0.12]
[1745729154655,0.64950454,94200.0,94199.0,0.12]
[1745729155049,0.64750454,94200.0,94199.0,0.12]
[1745729155249,0.64950454,94200.0,94199.0,0.12]
[1745729157058,0.64750454,94200.0,94199.0,0.12]
[1745729157255,0.64850454,94200.0,94199.0,0.12]
[1745729158265,0.64950454,94200.0,94199.0,0.12]
[1745729160849,0.28870454,94200.0,94199.0,0.12]
[1745729161054,0.64950454,94200.0,94199.0,0.12]
[1745729164962,0.28870454,94200.0,94199.0,0.12]
[1745729165263,0.64950454,94200.0,94199.0,0.12]
[1745729166051,0.28870454,94200.0,94199.0,0.12]
[1745729166257,0.64950454,94200.0,94199.0,0.12]
[1745729167861,0.28870454,94200.0,94199.0,0.12]
[1745729168169,0.64950454,94200.0,94199.0,0.12]
[1745729169475,0.28870454,94200.0,94199.0,0.12]
[1745729169667,0.64950454,94200.0,94199.0,0.12]
[1745729171163,0.64950454,94200.0,94199.0,0.1824]
[1745729173361,0.28870454,94200.0,94199.0,0.1824]
[1745729173568,0.64950454,94200.0,94199.0,0.1824]
[1745729177767,0.28870454,94200.0,94199.0,0.1824]
[1745729178161,0.64950454,94200.0,94199.0,0.1824]
[1745729181370,0.61760454,94200.0,94199.0,0.1824]
[1745729182569,0.25680454,94200.0,94199.0,0.1824]
[1745729182767,0.61760454,94200.0,94199.0,0.1824]